[Event "FIDE World Cup O8-A 2024"]
[Site "Batumi"]
[Date "2024.06.25"]
[Round "3.1"]
[White "Baranov, Prokhor"]
[Black "Ulan, Rizat"]
[Result "0-1"]
[ECO "A49"]
[WhiteElo "1509"]
[BlackElo "1733"]
[Annotator "NA RC"]
[PlyCount "38"]
[EventDate "2024.06.23"]
[EventType "swiss"]
[EventCountry "GEO"]
[SourceTitle "playchess.com"]
[Source "ChessBase"]
[SourceQuality "1"]
[TimeControl "5400+30"]

1. Nf3 {[%emt 0:00:01]} Nf6 {[%emt 0:00:06]} 2. g3 {[%emt 0:00:05]} g6 {[%emt 0:00:04]} 3. b3 {[%emt 0:00:06]} Bg7 {[%emt 0:00:22]} 4. Bb2 {[%emt 0:00:06]} d6 {[%emt 0:00:07]} 5. d4 {[%emt 0:00:08]} c5 {[%emt 0:00:05]} 6. dxc5 {[%emt 0:00:41]} Qa5+ {[%emt 0:00:03]} 7. Qd2 {[%emt 0:00:31]} Qxc5 {[%emt 0:00:05]} 8. c4 {[%emt 0:00:20]} Ne4 {[%emt 0:01:04]} 9. Qc2 {[%emt 0:08:50]} Qxf2+ {[%emt 0:03:31]} 10. Kd1 {[%emt 0:00:09]} Bxb2 {[%emt 0:03:47]} 11. Qxb2 {[%emt 0:00:07]} O-O {[%emt 0:00:10]} 12. Nc3 {[%emt 0:11:48]} Bf5 {[%emt 0:06:49]} 13. Nd5 {[%emt 0:07:52]} Nc6 {[%emt 0:01:01]} 14. b4 {[%emt 0:04:51]} e6 {[%emt 0:00:47]} 15. Nf6+ {[%emt 0:02:22]} Nxf6 {[%emt 0:00:04]} 16. Qxf6 {[%emt 0:00:04]} Nxb4 {[%emt 0:00:12]} 17. h4 {[%emt 0:01:21]} Qe3 {[%emt 0:00:27]} 18. h5 {[%emt 0:00:38]} Bc2+ {[%emt 0:00:05]} 19. Ke1 {[%emt 0:00:19]} Nd3# {[%emt 0:00:04]} 0-1

[Event "FIDE World Cup O8-A 2024"]
[Site "Batumi"]
[Date "2024.06.25"]
[Round "3.2"]
[White "Divith Reddy Adulla"]
[Black "Sattwik Swain"]
[Result "0-1"]
[ECO "C54"]
[WhiteElo "1722"]
[BlackElo "1567"]
[Annotator "NA RC"]
[PlyCount "78"]
[EventDate "2024.06.23"]
[EventType "swiss"]
[EventCountry "GEO"]
[SourceTitle "playchess.com"]
[Source "ChessBase"]
[SourceQuality "1"]
[TimeControl "5400+30"]

1. e4 {[%emt 0:00:02]} e5 {[%emt 0:00:07]} 2. Nf3 {[%emt 0:00:08]} Nc6 {[%emt 0:00:07]} 3. d4 {[%emt 0:00:05]} exd4 {[%emt 0:00:05]} 4. Bc4 {[%emt 0:00:06]} Bc5 {[%emt 0:00:06]} 5. c3 {[%emt 0:00:06]} Nf6 {[%emt 0:00:07]} 6. e5 {[%emt 0:00:05]} d5 {[%emt 0:00:06]} 7. Bb5 {[%emt 0:00:04]} Ne4 {[%emt 0:00:06]} 8. cxd4 {[%emt 0:00:05]} Bb6 {[%emt 0:00:10]} 9. O-O {[%emt 0:00:12]} O-O {[%emt 0:00:18]} 10. h3 {[%emt 0:00:28]} f6 {[%emt 0:01:27]} 11. Bxc6 {[%emt 0:00:53]} bxc6 {[%emt 0:00:14]} 12. Be3 {[%emt 0:00:29]} Ba6 {[%emt 0:03:01]} 13. Re1 {[%emt 0:00:07]} f5 {[%emt 0:12:29]} 14. Qc1 {[%emt 0:00:45]} Qd7 {[%emt 0:01:39]} 15. Bd2 {[%emt 0:04:50]} Bb7 {[%emt 0:02:21]} 16. Bb4 {[%emt 0:04:18]} Rfe8 {[%emt 0:01:15]} 17. Nc3 {[%emt 0:01:35]} a5 {[%emt 0:05:41]} 18. Ba3 {[%emt 0:00:07]} c5 {[%emt 0:02:28]} 19. dxc5 {[%emt 0:01:27]} Nxc5 {[%emt 0:00:23]} 20. Qd2 {[%emt 0:00:46]} Ne6 {[%emt 0:02:25]} 21. Qd3 {[%emt 0:07:43]} Nf4 {[%emt 0:02:00]} 22. Qd2 {[%emt 0:00:15]} Ne6 {[%emt 0:00:09]} 23. Red1 {[%emt 0:01:51]} d4 {[%emt 0:04:52]} 24. Ne1 {[%emt 0:00:31]} Qc6 {[%emt 0:10:00]} 25. Ne2 {[%emt 0:00:11]} a4 {[%emt 0:07:39]} 26. Nf3 {[%emt 0:06:04]} Rad8 {[%emt 0:09:13]} 27. Rac1 {[%emt 0:00:16]} Qd5 {[%emt 0:01:18]} 28. Ng3 {[%emt 0:01:41]} g6 {[%emt 0:03:45]} 29. Qh6 {[%emt 0:03:30]} c5 {[%emt 0:07:34]} 30. h4 {[%emt 0:00:43]} Rd7 {[%emt 0:01:33]} 31. Nf1 {[%emt 0:03:19]} Qc6 {[%emt 0:01:09]} 32. N1d2 {[%emt 0:00:50]} d3 {[%emt 0:02:37]} 33. h5 {[%emt 0:00:18]} Nd4 {[%emt 0:00:44]} 34. Rc4 {[%emt 0:00:42]} Rxe5 {[%emt 0:02:39]} 35. Qg5 {[%emt 0:04:00]} Ne2+ {[%emt 0:01:52]} 36. Kh1 {[%emt 0:00:56]} Re6 {[%emt 0:00:53]} 37. Rh4 {[%emt 0:00:29]} Bd8 {[%emt 0:00:23]} 38. Qh6 {[%emt 0:00:29]} g5 {[%emt 0:00:32]} 39. Ne5 {[%emt 0:01:26]} Qxg2# {[%emt 0:00:07]} 0-1

[Event "FIDE World Cup O8-A 2024"]
[Site "Batumi"]
[Date "2024.06.25"]
[Round "3.3"]
[White "Szumiec, Jan"]
[Black "Wee, Yu Heng Lucas John"]
[Result "0-1"]
[ECO "C06"]
[WhiteElo "1668"]
[BlackElo "1499"]
[Annotator "NA RC"]
[PlyCount "80"]
[EventDate "2024.06.23"]
[EventType "swiss"]
[EventCountry "GEO"]
[SourceTitle "playchess.com"]
[Source "ChessBase"]
[SourceQuality "1"]
[TimeControl "5400+30"]

1. e4 {[%emt 0:00:02]} e6 {[%emt 0:00:08]} 2. d4 {[%emt 0:00:09]} d5 {[%emt 0:00:18]} 3. Nd2 {[%emt 0:00:23]} Nf6 {[%emt 0:00:15]} 4. e5 {[%emt 0:00:08]} Nfd7 {[%emt 0:00:08]} 5. Bd3 {[%emt 0:00:08]} c5 {[%emt 0:00:05]} 6. c3 {[%emt 0:00:05]} Nc6 {[%emt 0:00:16]} 7. Ne2 {[%emt 0:00:12]} cxd4 {[%emt 0:00:19]} 8. cxd4 {[%emt 0:00:07]} Qb6 {[%emt 0:00:19]} 9. Nf3 {[%emt 0:00:39]} Bb4+ {[%emt 0:01:18]} 10. Bd2 {[%emt 0:01:22]} O-O {[%emt 0:00:13]} 11. O-O {[%emt 0:02:42]} f6 {[%emt 0:00:20]} 12. Nf4 {[%emt 0:17:03]} fxe5 {[%emt 0:05:28]} 13. Nxe6 {[%emt 0:01:01]} e4 {[%emt 0:02:14]} 14. Nfg5 {[%emt 0:05:57]} exd3 {[%emt 0:03:30]} 15. Bxb4 {[%emt 0:04:41]} Nxb4 {[%emt 0:01:06]} 16. Nxf8 {[%emt 0:01:12]} Nxf8 {[%emt 0:00:24]} 17. a3 {[%emt 0:03:20]} Nc2 {[%emt 0:00:39]} 18. Rc1 {[%emt 0:00:17]} Nxd4 {[%emt 0:00:46]} 19. Qxd3 {[%emt 0:02:00]} Qxb2 {[%emt 0:01:30]} 20. Rcd1 {[%emt 0:00:52]} Ne2+ {[%emt 0:00:43]} 21. Kh1 {[%emt 0:00:10]} Nf4 {[%emt 0:00:23]} 22. Qe3 {[%emt 0:04:11]} Qf6 {[%emt 0:01:19]} 23. Nf3 {[%emt 0:00:24]} Be6 {[%emt 0:02:21]} 24. g3 {[%emt 0:02:27]} N4g6 {[%emt 0:00:54]} 25. Nd4 {[%emt 0:01:27]} Re8 {[%emt 0:00:48]} 26. Qd2 {[%emt 0:01:08]} Rd8 {[%emt 0:01:51]} 27. f4 {[%emt 0:00:24]} Ne7 {[%emt 0:00:48]} 28. Rfe1 {[%emt 0:00:40]} Nf5 {[%emt 0:00:41]} 29. Nxe6 {[%emt 0:00:30]} Nxe6 {[%emt 0:00:12]} 30. Qa5 {[%emt 0:02:40]} Ned4 {[%emt 0:02:37]} 31. g4 {[%emt 0:04:46]} Nh4 {[%emt 0:01:00]} 32. g5 {[%emt 0:04:32]} Qb6 {[%emt 1:13:37]} 33. Qc3 {[%emt 0:12:25]} Ndf3 {[%emt 0:00:00]} 34. Rb1 {[%emt 0:04:42]} Qf2 {[%emt 0:00:00]} 35. Rb2 {[%emt 0:00:45]} Qxe1+ {[%emt 0:00:00]} 36. Qxe1 {[%emt 0:00:04]} Nxe1 {[%emt 0:00:00]} 37. Rxb7 {[%emt 0:00:08]} d4 {[%emt 0:00:00]} 38. Rxa7 {[%emt 0:00:06]} d3 {[%emt 0:00:00]} 39. a4 {[%emt 0:00:09]} d2 {[%emt 0:00:00]} 40. Rxg7+ {[%emt 0:00:07]} Kxg7 {[%emt 0:00:00]} 0-1

[Event "FIDE World Cup O8-A 2024"]
[Site "Batumi"]
[Date "2024.06.25"]
[Round "3.4"]
[White "Protopopescu, Luca"]
[Black "Stanisic, Lukas"]
[Result "1-0"]
[ECO "B76"]
[WhiteElo "1896"]
[BlackElo "1677"]
[Annotator "NA RC"]
[PlyCount "81"]
[EventDate "2024.06.23"]
[EventType "swiss"]
[EventCountry "GEO"]
[SourceTitle "playchess.com"]
[Source "ChessBase"]
[SourceQuality "1"]
[TimeControl "5400+30"]

1. e4 {[%emt 0:00:02]} c5 {[%emt 0:00:51]} 2. Nf3 {[%emt 0:00:08]} d6 {[%emt 0:00:21]} 3. d4 {[%emt 0:00:08]} cxd4 {[%emt 0:00:12]} 4. Nxd4 {[%emt 0:00:04]} Nf6 {[%emt 0:00:20]} 5. Nc3 {[%emt 0:00:08]} g6 {[%emt 0:00:37]} 6. f3 {[%emt 0:00:10]} Bg7 {[%emt 0:00:16]} 7. Be3 {[%emt 0:00:06]} O-O {[%emt 0:01:22]} 8. Qd2 {[%emt 0:00:05]} Nc6 {[%emt 0:02:00]} 9. O-O-O {[%emt 0:00:07]} d5 {[%emt 0:00:56]} 10. Kb1 {[%emt 0:00:10]} Nxd4 {[%emt 0:06:08]} 11. e5 {[%emt 0:00:15]} Nd7 {[%emt 0:03:15]} 12. Bxd4 {[%emt 0:02:04] B76: Sicilian Dragon: Yugoslav Attack, 9 g4 and 9 0-0-0.} e6 {[%emt 0:02:30]} 13. f4 {[%emt 0:00:09]} a6 {[%emt 0:02:42]} (13... f6 $16 {was necessary.}) 14. h4 {[%emt 0:01:08]} b5 {[%emt 0:03:45]} 15. g4 {[%emt 0:00:25]} f6 {[%emt 0:08:05] [#]} 16. f5 $2 {[%emt 0:01:24]} fxe5 {[%emt 0:04:39]} (16... gxf5 17. gxf5 (17. exf6 Nxf6 18. gxf5 b4 $18) 17... Nxe5 (17... fxe5 $2 {loses.} 18. fxe6 Bb7 19. Be3 $18) 18. h5) 17. fxe6 {[%emt 0:01:50]} exd4 {[%emt 0:02:38]} 18. Nxd5 {[%emt 0:00:49]} Nc5 {[%emt 0:12:02]} 19. e7 {[%emt 0:00:39]} Qxd5 {[%emt 0:01:48]} 20. exf8=Q+ {[%emt 0:00:55]} Bxf8 {[%emt 0:01:24]} 21. Bg2 {[%emt 0:00:21]} Ne4 {[%emt 0:02:19]} 22. Qxd4 {[%emt 0:00:15]} Nc3+ {[%emt 0:01:36]} 23. Qxc3 {[%emt 0:01:50]} Qxg2 {[%emt 0:00:47]} 24. h5 {[%emt 0:02:50]} Be6 {[%emt 0:07:44]} 25. hxg6 {[%emt 0:02:42]} Bg7 {[%emt 0:03:20]} 26. gxh7+ {[%emt 0:04:03]} Kh8 {[%emt 0:00:27]} 27. Qe3 {[%emt 0:00:52] [#]} Rc8 $1 {[%emt 0:02:36]} 28. Qd3 {[%emt 0:01:57]} Bf6 {[%emt 0:03:36]} 29. Qg6 {[%emt 0:01:08]} Bg7 {[%emt 0:01:34]} 30. g5 {[%emt 0:05:46]} Qc6 {[%emt 0:01:40]} 31. Qd3 {[%emt 0:01:15]} Qc7 {[%emt 0:00:49]} 32. g6 {[%emt 0:02:57]} Bd7 $18 {[%emt 0:01:21]} 33. c3 {[%emt 0:01:43]} Rd8 {[%emt 0:01:57]} 34. Rhe1 {[%emt 0:00:25]} Qf4 {[%emt 0:02:31]} 35. Ka1 {[%emt 0:02:43]} Qf6 {[%emt 0:02:04]} 36. Rf1 {[%emt 0:01:48]} Qe7 {[%emt 0:01:41]} 37. Rde1 {[%emt 0:00:41]} Qg5 {[%emt 0:03:50]} 38. Qxd7 {[%emt 0:01:07]} Bf6 {[%emt 0:03:38]} 39. Re8+ {[%emt 0:02:01]} Rxe8 {[%emt 0:00:54]} 40. Qxe8+ {[%emt 0:00:00]} Kg7 {[%emt 0:00:36]} 41. h8=Q# {[%emt 0:00:10]} 1-0

[Event "FIDE World Cup O8-A 2024"]
[Site "Batumi"]
[Date "2024.06.25"]
[Round "3.5"]
[White "Elemes, Nurmukhamed"]
[Black "Ambartsumyan, Roman Vlad"]
[Result "1-0"]
[ECO "D48"]
[WhiteElo "1570"]
[BlackElo "1413"]
[Annotator "NA RC"]
[PlyCount "95"]
[EventDate "2024.06.23"]
[EventType "swiss"]
[EventCountry "GEO"]
[SourceTitle "playchess.com"]
[Source "ChessBase"]
[SourceQuality "1"]
[TimeControl "5400+30"]

1. d4 {[%emt 0:00:01]} d5 {[%emt 0:00:05]} 2. c4 {[%emt 0:00:05]} c6 {[%emt 0:00:07]} 3. Nf3 {[%emt 0:00:05]} Nf6 {[%emt 0:00:10]} 4. Nc3 {[%emt 0:00:08]} e6 {[%emt 0:00:10]} 5. e3 {[%emt 0:00:17]} Nbd7 {[%emt 0:00:26]} 6. Bd3 {[%emt 0:00:22]} dxc4 {[%emt 0:00:12]} 7. Bxc4 {[%emt 0:00:12]} b5 {[%emt 0:00:03]} 8. Bd3 {[%emt 0:00:08]} a6 {[%emt 0:00:13]} 9. O-O {[%emt 0:00:49]} Be7 {[%emt 0:00:25]} 10. e4 {[%emt 0:00:52]} c5 {[%emt 0:02:44]} 11. Re1 {[%emt 0:07:17]} Bb7 {[%emt 0:01:59]} 12. e5 {[%emt 0:11:20]} Nd5 {[%emt 0:00:16]} 13. Qe2 {[%emt 0:02:27]} Rb8 {[%emt 0:03:38]} 14. Bd2 {[%emt 0:08:37]} N7b6 {[%emt 0:03:48]} 15. a4 {[%emt 0:04:30]} Nxc3 {[%emt 0:01:20]} 16. bxc3 {[%emt 0:01:57]} c4 {[%emt 0:06:48]} 17. Bc2 {[%emt 0:03:27]} O-O {[%emt 0:04:35]} 18. axb5 {[%emt 0:01:51]} axb5 {[%emt 0:00:05]} 19. Reb1 {[%emt 0:00:25]} Bxf3 {[%emt 0:01:01]} 20. Qxf3 {[%emt 0:01:32]} Nd5 {[%emt 0:00:26]} 21. Qg4 {[%emt 0:03:53]} Re8 {[%emt 0:02:20]} 22. Qe4 {[%emt 0:06:37]} g6 {[%emt 0:01:26]} 23. f4 {[%emt 0:05:42]} b4 {[%emt 0:01:26]} 24. cxb4 {[%emt 0:00:26]} Bxb4 {[%emt 0:00:19]} 25. Bxb4 {[%emt 0:01:47]} Nxb4 {[%emt 0:01:34]} 26. Ra4 {[%emt 0:01:48]} Qe7 {[%emt 0:04:45]} 27. Rc1 {[%emt 0:05:23]} Qd7 {[%emt 0:02:31]} 28. Bd1 {[%emt 0:02:24]} Nd3 {[%emt 0:03:20]} 29. Rca1 {[%emt 0:02:23]} Nb2 {[%emt 0:00:44]} 30. Ra7 {[%emt 0:00:57]} Qb5 {[%emt 0:01:34]} 31. Bc2 {[%emt 0:02:11]} Red8 {[%emt 0:02:11]} 32. f5 {[%emt 0:02:46]} exf5 {[%emt 0:02:04]} 33. Qh4 {[%emt 0:00:58]} Qb6 {[%emt 0:02:06]} 34. e6 {[%emt 0:03:04]} Qxe6 {[%emt 0:02:03]} 35. Re1 {[%emt 0:02:47]} Qb6 {[%emt 0:04:09]} 36. Rxf7 {[%emt 0:07:25]} Qxd4+ {[%emt 0:08:24]} 37. Qxd4 {[%emt 0:00:10]} Rxd4 {[%emt 0:00:06]} 38. Ree7 {[%emt 0:00:46]} Rd2 {[%emt 0:00:36]} 39. Rg7+ {[%emt 0:01:06]} Kf8 {[%emt 0:00:13]} 40. Ref7+ {[%emt 0:00:10]} Ke8 {[%emt 0:00:11]} 41. Rxh7 {[%emt 0:00:24]} Rxc2 {[%emt 0:00:38]} 42. Ra7 {[%emt 0:00:18]} Rc1+ {[%emt 0:01:27]} 43. Kf2 {[%emt 0:00:06]} Nd3+ {[%emt 0:00:11]} 44. Kg3 {[%emt 0:00:05]} f4+ {[%emt 0:00:29]} 45. Kh3 {[%emt 0:00:14]} Nf2+ {[%emt 0:00:44]} 46. Kh4 {[%emt 0:00:08]} g5+ {[%emt 0:01:04]} 47. Kh5 {[%emt 0:00:15]} Ng4 {[%emt 0:01:25]} 48. Rh8# {[%emt 0:00:07]} 1-0

[Event "FIDE World Cup O8-A 2024"]
[Site "Batumi"]
[Date "2024.06.25"]
[Round "3.6"]
[White "Hriday Garg"]
[Black "Jasson, Alexander Luke Josep"]
[Result "0-1"]
[ECO "C58"]
[WhiteElo "1554"]
[BlackElo "1889"]
[Annotator "NA RC"]
[PlyCount "122"]
[EventDate "2024.06.23"]
[EventType "swiss"]
[EventCountry "GEO"]
[SourceTitle "playchess.com"]
[Source "ChessBase"]
[SourceQuality "1"]
[TimeControl "5400+30"]

1. e4 {[%emt 0:00:25]} e5 {[%emt 0:00:12]} 2. Nf3 {[%emt 0:00:06]} Nc6 {[%emt 0:00:19]} 3. Bc4 {[%emt 0:00:05]} Nf6 {[%emt 0:00:13]} 4. Ng5 {[%emt 0:00:07]} d5 {[%emt 0:00:07]} 5. exd5 {[%emt 0:00:06]} Na5 {[%emt 0:00:07]} 6. Bb5+ {[%emt 0:00:03]} c6 {[%emt 0:00:05]} 7. dxc6 {[%emt 0:00:04]} bxc6 {[%emt 0:00:10]} 8. Bd3 {[%emt 0:00:04]} Nd5 {[%emt 0:00:12] C58: Two Knights: 4 Ng5 d5 5 exd5 Na5 sidelines.} 9. Nf3 {[%emt 0:00:02]} Bd6 {[%emt 0:00:18]} 10. O-O {[%emt 0:00:15]} O-O {[%emt 0:00:34]} 11. Re1 {[%emt 0:03:16]} f5 {[%emt 0:00:26]} 12. Bf1 {[%emt 0:00:36]} Qc7 {[%emt 0:08:52]} 13. h3 {[%emt 0:01:52]} Bb7 {[%emt 0:05:11]} 14. Nc3 {[%emt 0:01:38]} Nxc3 {[%emt 0:02:56]} 15. dxc3 {[%emt 0:00:35]} Rad8 {[%emt 0:02:52]} 16. Bd2 {[%emt 0:00:59]} c5 {[%emt 0:04:14]} 17. Ng5 {[%emt 0:01:06]} Rf6 {[%emt 0:04:26]} 18. h4 {[%emt 0:09:35]} h6 {[%emt 0:01:56]} 19. Nh3 {[%emt 0:00:09]} Rg6 {[%emt 0:01:34]} 20. Qe2 {[%emt 0:18:02]} f4 {[%emt 0:04:25]} 21. Qh5 {[%emt 0:03:49]} Qf7 {[%emt 0:02:10]} 22. Kh1 {[%emt 0:01:24]} Bc7 {[%emt 0:08:17]} 23. Rad1 {[%emt 0:02:55]} Bc8 {[%emt 0:02:43]} 24. Be2 $19 {[%emt 0:55:17]} (24. Qe2 {[%emt 0:00:40]}) ({Not} 24. Bd3 $2 Rxd3 25. Nxf4 (25. cxd3 $2 {perishes.} Bg4 $19) 25... Rh3+ (25... exf4 $2 26. cxd3 $19) 26. Nxh3 Bg4 $19) 24... Bxh3 {[%emt 0:23:37]} 25. gxh3 {[%emt 0:00:00]} e4 {[%emt 0:01:44]} 26. Bg4 {[%emt 0:00:00]} Rd5 {[%emt 0:05:05]} 27. Qxd5 {[%emt 0:00:00]} Qxd5 {[%emt 0:00:16]} 28. Bxf4 {[%emt 0:00:00]} Qf7 {[%emt 0:03:11]} 29. Be3 {[%emt 0:00:00]} Rxg4 {[%emt 0:18:48]} 30. hxg4 {[%emt 0:00:00]} Qf3+ {[%emt 0:00:00]} 31. Kg1 {[%emt 0:00:00]} Qxg4+ {[%emt 0:00:00]} 32. Kh1 {[%emt 0:00:00]} Qh3+ {[%emt 0:00:00]} 33. Kg1 {[%emt 0:00:00]} Bh2+ {[%emt 0:00:00]} 34. Kh1 {[%emt 0:00:00]} Bf4+ {[%emt 0:00:00]} 35. Kg1 {[%emt 0:00:00]} Bxe3 {[%emt 0:00:00]} 36. Rd8+ {[%emt 0:00:00]} Kh7 {[%emt 0:00:00]} 37. Rxe3 {[%emt 0:00:00]} Qxh4 {[%emt 0:00:00]} 38. Re8 {[%emt 0:00:00]} Qg4+ {[%emt 0:00:00]} 39. Kf1 {[%emt 0:00:00]} Nc4 {[%emt 0:00:00]} 40. Rg3 {[%emt 0:00:00]} Qd1+ {[%emt 0:00:00]} 41. Kg2 {[%emt 0:00:00]} Qd5 {[%emt 0:00:00]} 42. Re7 {[%emt 0:00:00]} e3+ {[%emt 0:00:00]} 43. f3 {[%emt 0:00:00]} Qg8 {[%emt 0:00:00]} 44. Rxa7 {[%emt 0:00:00]} Nxb2 {[%emt 0:00:00]} 45. a4 {[%emt 0:00:00]} Kh8 {[%emt 0:00:00]} 46. a5 {[%emt 0:00:00]} g5 {[%emt 0:00:00]} 47. a6 {[%emt 0:00:00]} e2 {[%emt 0:00:27]} 48. Kf2 {[%emt 0:00:00]} e1=Q+ {[%emt 0:00:09]} 49. Kxe1 {[%emt 0:00:00]} Qb8 {[%emt 0:00:42]} 50. Rb7 {[%emt 0:00:00]} Qxg3+ {[%emt 0:00:01]} 51. Ke2 {[%emt 0:00:00]} Qe5+ {[%emt 0:00:47]} 52. Kf2 {[%emt 0:00:00]} Nd1+ {[%emt 0:00:19]} 53. Kf1 {[%emt 0:00:00]} Qe3 {[%emt 0:00:53]} 54. Kg2 {[%emt 0:00:00]} Qf2+ {[%emt 0:00:15]} 55. Kh3 {[%emt 0:00:00]} Qxf3+ {[%emt 0:00:14]} 56. Kh2 {[%emt 0:00:00]} Ne3 {[%emt 0:00:21]} 57. Rb8+ {[%emt 0:00:00]} Kg7 {[%emt 0:00:24]} 58. Rb7+ {[%emt 0:00:00]} Kg6 {[%emt 0:00:19]} 59. Rb6+ {[%emt 0:00:00]} Kh5 {[%emt 0:00:06]} 60. Rxh6+ {[%emt 0:00:00]} Kxh6 {[%emt 0:00:14]} 61. c4 {[%emt 0:00:00]} Qg2# {[%emt 0:00:22]} 0-1

[Event "FIDE World Cup O8-A 2024"]
[Site "Batumi"]
[Date "2024.06.25"]
[Round "3.8"]
[White "Guo, Philipp Ziming"]
[Black "Berishvili, Alexandre"]
[Result "1/2-1/2"]
[ECO "A13"]
[WhiteElo "2146"]
[BlackElo "1471"]
[Annotator "RC"]
[PlyCount "133"]
[EventDate "2024.06.23"]
[EventType "swiss"]
[EventCountry "GEO"]
[SourceTitle "playchess.com"]
[Source "ChessBase"]
[SourceQuality "1"]
[TimeControl "5400+30"]

1. d4 {[%emt 0:00:01]} d5 {[%emt 0:00:00]} 2. c4 {[%emt 0:00:05]} e6 {[%emt 0:00:00]} 3. Nf3 {[%emt 0:00:05]} Nc6 {[%emt 0:00:00]} 4. g3 {[%emt 0:00:06]} Nge7 {[%emt 0:00:00]} 5. Bg2 {[%emt 0:00:08]} g6 {[%emt 0:00:00]} 6. cxd5 {[%emt 0:00:06]} exd5 {[%emt 0:00:00]} 7. O-O {[%emt 0:00:06]} Bg7 {[%emt 0:00:00]} 8. Nc3 {[%emt 0:00:08]} O-O {[%emt 0:00:01]} 9. Bf4 {[%emt 0:00:06]} Be6 {[%emt 0:00:09]} 10. a3 {[%emt 0:00:20]} a6 {[%emt 0:00:33]} 11. Na4 {[%emt 0:00:19]} Rb8 {[%emt 0:00:55]} 12. Nc5 {[%emt 0:00:37]} Bg4 {[%emt 0:01:56]} 13. Nb3 {[%emt 0:03:02]} Re8 {[%emt 0:02:03]} 14. Ne5 {[%emt 0:00:50]} Bf5 {[%emt 0:01:12]} 15. Rc1 {[%emt 0:01:03]} Rf8 {[%emt 0:07:03]} 16. h3 {[%emt 0:01:50]} Re8 {[%emt 0:00:45]} 17. g4 {[%emt 0:01:21]} Be6 {[%emt 0:01:22]} 18. Nc5 {[%emt 0:01:39]} Rf8 {[%emt 0:00:58]} 19. e3 {[%emt 0:00:56]} Qc8 {[%emt 0:06:34]} 20. Nxe6 {[%emt 0:00:10]} fxe6 {[%emt 0:00:14]} 21. Nxc6 {[%emt 0:00:31]} Nxc6 {[%emt 0:00:14]} 22. Qe2 {[%emt 0:00:11]} Nxd4 {[%emt 0:01:09]} 23. Qd3 {[%emt 0:01:55]} Nc6 {[%emt 0:01:52]} 24. Rc2 {[%emt 0:00:21]} Qd7 {[%emt 0:00:52]} 25. Bg3 {[%emt 0:00:26]} Ne5 {[%emt 0:06:58]} 26. Qe2 {[%emt 0:00:39]} Rbc8 {[%emt 0:00:28]} 27. f4 {[%emt 0:02:22]} Nc4 {[%emt 0:00:22]} 28. Rd1 {[%emt 0:00:16]} Qb5 {[%emt 0:02:34]} 29. Qe1 {[%emt 0:03:47]} Qa4 {[%emt 0:03:40]} 30. Re2 {[%emt 0:03:09]} Nxb2 {[%emt 0:00:48]} 31. Rb1 {[%emt 0:01:59]} Qxa3 {[%emt 0:01:38]} 32. Qc1 {[%emt 0:00:22]} Nc4 {[%emt 0:00:29]} 33. Qxa3 {[%emt 0:01:47]} Nxa3 {[%emt 0:00:05]} 34. Rxb7 {[%emt 0:00:05]} Nb5 {[%emt 0:00:24]} 35. Rc2 {[%emt 0:00:49]} d4 {[%emt 0:01:04]} 36. exd4 {[%emt 0:01:07]} Bxd4+ {[%emt 0:00:12]} 37. Kh2 {[%emt 0:00:07]} Bb6 {[%emt 0:00:18]} 38. Rc6 {[%emt 0:02:48]} Rfd8 {[%emt 0:01:56]} 39. Rxe6 {[%emt 0:06:49]} Nd6 {[%emt 0:00:37]} 40. Rxb6 {[%emt 0:00:02]} cxb6 {[%emt 0:00:07]} 41. f5 {[%emt 0:00:04]} Nc4 {[%emt 0:01:06]} 42. fxg6 {[%emt 0:00:55]} hxg6 {[%emt 0:00:11]} 43. Bb7 {[%emt 0:00:04]} Rd2+ {[%emt 0:00:51]} 44. Kg1 {[%emt 0:00:12]} Rcd8 {[%emt 0:00:21]} 45. Bxa6 {[%emt 0:00:29]} Nd6 {[%emt 0:04:50]} 46. Rxg6+ {[%emt 0:01:39]} Kf7 {[%emt 0:00:08]} 47. Rg5 {[%emt 0:00:15]} Ne4 {[%emt 0:01:35]} 48. Bc4+ {[%emt 0:00:33]} Kf8 {[%emt 0:01:05]} 49. Rg8+ {[%emt 0:00:49]} Ke7 {[%emt 0:03:25]} 50. Bh4+ {[%emt 0:00:03]} Nf6 {[%emt 0:01:10]} 51. Rg7+ {[%emt 0:00:19]} Kd6 {[%emt 0:00:36]} 52. Bxf6 {[%emt 0:00:11]} Rc8 {[%emt 0:00:04]} 53. Bf1 {[%emt 0:00:25]} Rd1 {[%emt 0:00:30]} 54. Bh4 {[%emt 0:00:50]} b5 {[%emt 0:00:59]} 55. g5 {[%emt 0:00:27]} b4 {[%emt 0:00:42]} 56. g6 {[%emt 0:02:04]} b3 {[%emt 0:00:44]} 57. Be7+ {[%emt 0:02:38]} Ke6 {[%emt 0:00:20]} 58. Ba3 {[%emt 0:00:19]} Kf6 {[%emt 0:01:18]} 59. Bb2+ {[%emt 0:00:20]} Kg5 {[%emt 0:00:08]} 60. h4+ {[%emt 0:00:18]} Kh6 {[%emt 0:01:18]} 61. Rf7 {[%emt 0:08:47]} Kxg6 {[%emt 0:00:38]} 62. Rf3 {[%emt 0:00:19]} Kh5 {[%emt 0:01:29]} 63. Kf2 {[%emt 0:01:53]} Rc2+ {[%emt 0:00:31]} 64. Be2 {[%emt 0:00:54]} Rdd2 {[%emt 0:00:26]} 65. Rd3+ {[%emt 0:05:40]} Kg6 {[%emt 0:01:39]} 66. h5+ {[%emt 0:00:53]} Kh7 {[%emt 0:00:06]} 67. Rxd2 {[%emt 0:00:34]} 1/2-1/2